fUSD/lending_fUSD_20251017
["ID","MTS","AMOUNT","RATE_DAILY","PERIOD"]
[391709146,1760739042995,-1500.0,0.00029669,5]
[391709147,1760739043007,-1500.0,0.00029669,5]
[391709150,1760739043019,-1244.95214269,0.00029669,5]
[391709152,1760739043032,-400.0,0.00029796,5]
[391709153,1760739043044,-3594.81602736,0.00029818,2]
[391709154,1760739043055,-158.35708104,0.00029834,2]
[391709155,1760739043067,-4207.89667961,0.00029844,2]
[391709156,1760739043077,-158.35708104,0.00029844,2]
[391709157,1760739043086,-87073.04722443,0.00029848,2]
[391709158,1760739043095,-4207.89667961,0.00029853,2]
[391709159,1760739043105,-2741.13392379,0.00029878,2]
[391709160,1760739043115,-87073.04722443,0.00029878,2]
[391709161,1760739043124,-158.35708104,0.00029886,2]
[391709162,1760739043360,-500.0,0.00029893,10]
[391709163,1760739043378,-2741.13392379,0.00029914,2]
[391709164,1760739043388,-158.35708104,0.0002994,2]
[391709165,1760739043397,-4207.89667961,0.00029946,2]
[391709166,1760739043407,-87073.04722443,0.00029964,2]
[391709167,1760739043416,-4207.89667961,0.00029971,2]
[391709168,1760739043426,-2741.13392379,0.00029973,2]
[391709169,1760739043442,-2741.13392379,0.00029974,2]
[391709171,1760739043456,-87073.04722443,0.00029992,2]
[391709172,1760739043466,-606.91463642,0.00029999,2]
[391709175,1760739043485,-500.0,0.00029999,2]
[391709177,1760739043494,-500.0,0.00029999,2]
[391709178,1760739043504,-500.0,0.00029999,2]
[391709179,1760739043513,-500.0,0.00029999,2]
[391709180,1760739043523,-500.0,0.00029999,2]
[391709181,1760739043532,-500.0,0.00029999,2]
[391709182,1760739043541,-500.0,0.00029999,2]
[391709183,1760739043551,-500.0,0.00029999,2]
[391709184,1760739043560,-500.0,0.00029999,2]
[391709185,1760739043569,-283.74607556,0.00029999,2]
[391709186,1760739043578,-500.0,0.00029999,2]
[391709187,1760739043588,-1500.0,0.00030096,5]
[391709188,1760739043597,-529.19423798,0.00030101,13]
[391709189,1760739043606,-1902.75,0.00030136,3]
[391709190,1760739043616,-500.0,0.00030167,10]
[391709191,1760739043625,-1371.05227471,0.00030217,5]
[391709192,1760739043634,-2000.0,0.00030217,5]
[391709193,1760739043643,-2000.0,0.00030217,5]
[391709194,1760739043652,-500.0,0.00030441,10]
[391709195,1760739043661,-2000.0,0.00030644,5]
[391709196,1760739043670,-54027.0,0.000308,2]
[391709197,1760739043680,-154.0,0.00031,120]
[391709198,1760739043689,-574.67205152,0.00031092,15]
[391709199,1760739043698,-2500.0,0.00031192,5]
[391709200,1760739043707,-7432.88814481,0.00031333,2]
[391709201,1760739043716,-5000.0,0.00031333,2]
[391709202,1760739043726,-5000.0,0.00031333,2]
[391709203,1760739043735,-5000.0,0.00031333,2]
[391709204,1760739043744,-5000.0,0.00031333,2]
[391709205,1760739043753,-5512.0,0.000314,3]
[391709206,1760739043762,-4000.0,0.00031528,2]
[391709207,1760739043771,-3000.0,0.0003174,5]
[391709208,1760739043781,-164.65,0.00031759,2]
[391709209,1760739043790,-150.0,0.000318,30]
[391709210,1760739043799,-500.0,0.00031886,5]
[391709211,1760739043809,-5512.0,0.000319,5]
[391709212,1760739043818,-3594.81602736,0.00031973,2]
[391709213,1760739043827,-2000.00000004,0.00032,30]
[391709214,1760739043836,-3000.00000006,0.00032,30]
[391709215,1760739043845,-2145.6943,0.00032,30]
[391709216,1760739043854,-15225.115906,0.00032064,2]
[391709217,1760739043863,-1000.0,0.00032074,30]
[391709218,1760739043872,-620.25503748,0.00032083,17]
[391709219,1760739043881,-449.0,0.00032083,30]
[391709220,1760739043890,-156.1,0.00032083,2]
[391709221,1760739043899,-150.0,0.00032131,5]
[391709222,1760739043908,-350.89592213,0.00032679,5]
[391709223,1760739043918,-421.66,0.00032725,30]
[391709224,1760739043928,-500.0,0.00032867,2]
[391709225,1760739043938,-500.0,0.00032867,5]
[391709226,1760739043950,-574.27754688,0.00032867,5]
[391709227,1760739043959,-2854.125,0.00032876,4]
[391709228,1760739043968,-15225.115906,0.0003298,2]
[391709229,1760739043978,-500.0,0.00032989,2]
[391709230,1760739043989,-154.0,0.00033,120]
[391709231,1760739043998,-665.93588815,0.00033075,19]
[391709232,1760739044007,-500.0,0.00033082,17]
[391709233,1760739044019,-501.0,0.00033083,120]
[391709234,1760739044028,-372.13,0.00033165,2]
[391709235,1760739044037,-1000.0,0.00033165,2]
[391709236,1760739044046,-1000.0,0.00033165,2]
[391709237,1760739044055,-1000.0,0.00033165,2]
[391709238,1760739044064,-1000.0,0.00033165,2]
[391709239,1760739044073,-1000.0,0.00033165,2]
[391709240,1760739044083,-1000.0,0.00033165,2]
[391709241,1760739044094,-1000.0,0.00033165,2]
[391709242,1760739044103,-1000.0,0.00033165,2]
[391709243,1760739044112,-1000.0,0.00033165,2]
[391709244,1760739044121,-1000.0,0.00033165,2]
[391709245,1760739044130,-1000.0,0.00033415,5]
[391709246,1760739044139,-500.0,0.00033415,2]
[391709247,1760739044148,-500.0,0.00033799,17]
[391709248,1760739044158,-15225.115906,0.00033952,2]
[391709249,1760739044168,-1500.0,0.00033963,5]
[391709250,1760739044177,-164.65,0.00034028,2]
[391709251,1760739044186,-711.70825885,0.00034066,21]
[391709252,1760739044195,-502.0,0.00034083,120]
[391709253,1760739044204,-3594.81602736,0.00034127,2]
[391709254,1760739044213,-539.56731829,0.00034511,5]
[391709255,1760739044222,-500.0,0.0003453,17]
[391709256,1760739044231,-178.84844516,0.0003453,17]
[391709257,1760739044240,-500.0,0.0003453,17]
[391709258,1760739044249,-500.0,0.00034699,17]
[391709259,1760739044258,-199.0,0.00034699,7]
[391709260,1760739044267,-196.76481376,0.00034973,8]
[391709261,1760739044277,-15225.115906,0.0003498,2]
[391709262,1760739044287,-500.0,0.00034996,5]
[391709263,1760739044296,-154.0,0.00035,120]
[391709264,1760739044306,-757.56658848,0.00035057,24]
[391709265,1760739044316,-503.0,0.00035083,120]
[391709266,1760739044325,-1000.0,0.00035544,5]
[391709267,1760739044334,-500.0,0.00035547,17]
[391709268,1760739044344,-618.59345277,0.00035592,17]
[391709269,1760739044353,-500.0,0.00035592,17]
[391709270,1760739044362,-3805.5,0.00035616,5]
[391709271,1760739044371,-480.0,0.00035668,2]
[391709272,1760739044380,-15225.115906,0.00035738,2]
[391709273,1760739044390,-1004.25877107,0.00036,7]
[391709274,1760739044400,-803.50596214,0.00036049,26]
[391709275,1760739044409,-504.0,0.00036083,120]
[391709276,1760739044419,-1500.0,0.00036092,5]
[391709277,1760739044429,-3594.81602736,0.00036282,2]
[391709278,1760739044438,-309.53,0.000364,60]
[391709279,1760739044448,-150.0,0.00036499,2]
[391709280,1760739044457,-150.0,0.00036499,120]
[391709281,1760739044467,-1227.47123296,0.0003664,5]
[391709282,1760739044476,-15225.115906,0.0003699,3]
[391709283,1760739044485,-9124.94101428,0.0003699,3]
[391709284,1760739044494,-1000.0,0.00037,2]
[391709285,1760739044503,-154.0,0.00037,120]
[391709286,1760739044513,-1000.0,0.00037,2]
[391709287,1760739044522,-1000.0,0.00037,2]
[391709288,1760739044532,-1000.0,0.00037,2]
[391709289,1760739044541,-1000.0,0.00037,2]
[391709290,1760739044550,-1000.0,0.00037,2]
[391709291,1760739044559,-1000.0,0.00037,2]
[391709292,1760739044569,-279.0,0.00037,2]
[391709293,1760739044578,-1004.0,0.00037,7]
[391709294,1760739044587,-480.0,0.00037005,2]
[391709295,1760739044596,-849.52200417,0.0003704,28]
[391709296,1760739044606,-185.99819026,0.000372,120]
[391709297,1760739044615,-500.0,0.00037231,17]
[391709298,1760739044625,-168.24,0.00037628,2]
[391709299,1760739044634,-546.7,0.00037628,2]
[391709300,1760739044643,-421.66,0.00037706,120]
[391709301,1760739044653,-433.96168818,0.00037776,2]
[391709302,1760739044662,-9124.94101428,0.0003788,3]
[391709303,1760739044671,-15225.115906,0.0003789,3]
[391709304,1760739044681,-12285.33629916,0.000379,120]
[391709305,1760739044690,-1004.0,0.00038,7]
[391709306,1760739044699,-475.6557911,0.00038,120]
[391709307,1760739044708,-895.61079362,0.00038031,30]
[391709308,1760739044718,-500.0,0.00038247,2]
[391709309,1760739044728,-480.0,0.00038343,2]
[391709310,1760739044737,-9124.94101428,0.00038346,3]
[391709311,1760739044746,-4756.875,0.00038356,6]
[391709312,1760739044755,-500.0,0.00038356,120]
[391709313,1760739044764,-3594.81602736,0.00038436,2]
[391709314,1760739044774,-1090.4,0.00038447,2]
[391709315,1760739044783,-168.24,0.00038447,2]
[391709316,1760739044792,-413.53,0.00038447,2]
[391709317,1760739044802,-372.02,0.00038447,2]
[391709318,1760739044811,-168.24,0.00038447,2]
[391709319,1760739044820,-168.24,0.00038447,2]
[391709320,1760739044830,-159.51,0.00038447,2]
[391709321,1760739044840,-168.04,0.00038447,2]
[391709322,1760739044849,-999.0,0.00038657,120]
[391709323,1760739044858,-999.0,0.00038657,120]
[391709324,1760739044867,-999.0,0.00038657,120]
[391709325,1760739044876,-999.0,0.00038657,120]
[391709326,1760739044886,-999.0,0.00038657,120]
[391709327,1760739044895,-999.0,0.00038657,120]
[391709328,1760739044904,-999.0,0.00038657,120]
[391709329,1760739044914,-999.0,0.00038657,120]
[391709330,1760739044923,-385.59322395,0.00038657,120]
[391709331,1760739044933,-15225.115906,0.00038712,3]
[391709332,1760739044944,-9124.94101428,0.00038712,3]
[391709333,1760739044954,-4270.55329872,0.00038722,120]
[391709334,1760739044964,-154.0,0.00039,120]
[391709335,1760739044973,-150.0,0.00039,2]
[391709336,1760739044983,-941.76879659,0.00039023,32]
[391709337,1760739044992,-9124.94101428,0.0003919,3]
[391709338,1760739045001,-2000.0,0.000392,2]
[391709339,1760739045010,-1000.0,0.000392,2]
[391709340,1760739045022,-372.13,0.00039654,2]
[391709341,1760739045032,-480.0,0.0003968,2]
[391709342,1760739045041,-500.0,0.00039998,17]
[391709343,1760739045051,-779.74437343,0.0004,120]
[391709344,1760739045060,-2162.21037581,0.0004,5]
[391709345,1760739045069,-987.99281128,0.00040014,34]
[391709346,1760739045078,-15225.115906,0.00040091,3]
[391709347,1760739045088,-9124.94101428,0.00040091,3]
[391709348,1760739045098,-9124.94101428,0.00040101,3]
[391709349,1760739045107,-30450.2318121,0.00040111,3]
[391709350,1760739045116,-18249.8820286,0.00040111,3]
[391709351,1760739045125,-500.0,0.0004012,2]
[391709352,1760739045135,-196.27808696,0.00040121,14]
[391709353,1760739045145,-33121.9923,0.00040121,2]
[391709354,1760739045154,-1000.0,0.00040121,2]
[391709355,1760739045164,-1128.09804163,0.00040126,20]
[391709356,1760739045173,-971.99101166,0.00040126,20]
[391709357,1760739045183,-9124.94101428,0.00040191,3]
[391709358,1760739045192,-30450.2318121,0.00040201,3]
[391709359,1760739045201,-27374.8230428,0.00040201,3]
[391709360,1760739045210,-500.0,0.0004021,17]
[391709361,1760739045219,-45675.3477181,0.00040211,3]
[391709362,1760739045229,-45624.7050714,0.00040211,3]
[391709363,1760739045238,-1000.0,0.00040221,2]
[391709364,1760739045247,-1000.0,0.00040221,2]
[391709365,1760739045256,-1000.0,0.00040221,2]
[391709366,1760739045265,-1000.0,0.00040221,2]
[391709367,1760739045274,-1000.0,0.00040221,2]
[391709368,1760739045283,-1000.0,0.00040221,2]
[391709369,1760739045293,-1000.0,0.00040221,2]
[391709370,1760739045302,-1000.0,0.00040221,2]
[391709371,1760739045311,-1000.0,0.00040221,2]
[391709372,1760739045321,-1000.0,0.00040221,2]
[391709373,1760739045330,-1000.0,0.00040221,2]
[391709374,1760739045339,-1000.0,0.00040221,2]
[391709375,1760739045348,-1000.0,0.00040221,2]
[391709376,1760739045357,-1000.0,0.00040221,2]
[391709377,1760739045368,-1000.0,0.00040221,2]
[391709378,1760739045377,-1000.0,0.00040221,2]
[391709379,1760739045387,-1000.0,0.00040221,2]
[391709380,1760739045397,-1000.0,0.00040221,2]
[391709381,1760739045406,-1000.0,0.00040221,2]
[391709382,1760739045416,-1000.0,0.00040221,2]
[391709383,1760739045428,-1000.0,0.00040221,2]
[391709384,1760739045437,-1000.0,0.00040221,2]
[391709385,1760739045449,-1000.0,0.00040221,2]
[391709386,1760739045458,-1000.0,0.00040221,2]
[391709387,1760739045467,-1000.0,0.00040221,2]
[391709388,1760739045477,-1000.0,0.00040221,2]
[391709389,1760739045486,-1000.0,0.00040221,2]
[391709390,1760739045495,-1000.0,0.00040221,2]
[391709391,1760739045504,-1000.0,0.00040221,2]
[391709392,1760739045514,-1000.0,0.00040221,2]
[391709393,1760739045523,-1000.0,0.00040221,2]
[391709394,1760739045532,-1000.0,0.00040221,2]
[391709395,1760739045542,-1000.0,0.00040221,2]
[391709396,1760739045551,-1000.0,0.00040221,2]
[391709397,1760739045561,-1000.0,0.00040221,2]
[391709398,1760739045570,-1000.0,0.00040221,2]
[391709399,1760739045579,-1000.0,0.00040221,2]
[391709400,1760739045589,-1000.0,0.00040221,2]
[391709401,1760739045598,-1000.0,0.00040221,2]
[391709402,1760739045607,-1000.0,0.00040221,2]
[391709403,1760739045617,-1000.0,0.00040221,2]
[391709404,1760739045626,-1000.0,0.00040221,2]
[391709405,1760739045635,-1000.0,0.00040221,2]
[391709406,1760739045645,-1000.0,0.00040221,2]
[391709407,1760739045655,-1000.0,0.00040221,2]
[391709408,1760739045664,-1000.0,0.00040221,2]
[391709409,1760739045673,-1000.0,0.00040221,2]
[391709410,1760739045682,-1000.0,0.00040221,2]
[391709411,1760739045691,-1000.0,0.00040221,2]
[391709412,1760739045700,-1000.0,0.00040221,2]
[391709413,1760739045709,-1000.0,0.00040221,2]
[391709414,1760739045718,-1000.0,0.00040221,2]
[391709415,1760739045728,-1000.0,0.00040221,2]
[391709416,1760739045737,-1000.0,0.00040221,2]
[391709417,1760739045747,-1000.0,0.00040221,2]
[391709418,1760739045756,-1000.0,0.00040221,2]
[391709419,1760739045765,-1000.0,0.00040221,2]
[391709420,1760739045775,-1000.0,0.00040221,2]
[391709421,1760739045784,-1000.0,0.00040221,2]
[391709422,1760739045794,-1000.0,0.00040221,2]
[391709423,1760739045803,-1000.0,0.00040221,2]
[391709424,1760739045812,-1000.0,0.00040221,2]
[391709425,1760739045822,-1000.0,0.00040221,2]
[391709427,1760739045832,-1000.0,0.00040221,2]
[391709428,1760739045841,-1000.0,0.00040221,2]
[391709429,1760739045851,-1000.0,0.00040221,2]
[391709430,1760739045860,-1000.0,0.00040221,2]
[391709431,1760739045870,-1000.0,0.00040221,2]
[391709432,1760739045880,-1000.0,0.00040221,2]
[391709433,1760739045890,-1000.0,0.00040221,2]
[391709434,1760739045899,-1000.0,0.00040221,2]
[391709435,1760739045908,-1000.0,0.00040221,2]
[391709436,1760739045918,-1000.0,0.00040221,2]
[391709437,1760739045928,-1000.0,0.00040221,2]
[391709438,1760739045938,-1000.0,0.00040221,2]
[391709439,1760739045950,-1000.0,0.00040221,2]
[391709440,1760739045959,-1000.0,0.00040221,2]
[391709441,1760739045969,-1000.0,0.00040221,2]
[391709442,1760739045979,-1000.0,0.00040221,2]
[391709443,1760739045990,-1000.0,0.00040221,2]
[391709444,1760739046000,-1000.0,0.00040221,2]
[391709445,1760739046010,-1000.0,0.00040221,2]
[391709446,1760739046020,-1000.0,0.00040221,2]
[391709447,1760739046030,-1000.0,0.00040221,2]
[391709448,1760739046039,-1000.0,0.00040221,2]
[391709449,1760739046049,-1000.0,0.00040221,2]
[391709450,1760739046059,-1000.0,0.00040221,2]
[391709451,1760739046069,-1000.0,0.00040221,2]
[391709452,1760739046078,-1000.0,0.00040221,2]
[391709453,1760739046088,-1000.0,0.00040221,2]
[391709454,1760739046097,-500.0,0.00040273,5]
[391709455,1760739046107,-500.0,0.00040479,2]
[391709456,1760739046116,-176.40682781,0.00040479,2]
[391709457,1760739046126,-500.0,0.00040479,2]
[391709458,1760739046135,-548.0,0.00040479,2]
[391709459,1760739046145,-500.0,0.00040534,2]
[391709460,1760739046155,-500.0,0.00040534,2]
[391709461,1760739046164,-548.0,0.00040534,2]
[391709462,1760739046173,-303.07609336,0.00040589,2]
[391709463,1760739046183,-500.0,0.00040589,2]
[391709464,1760739046192,-548.0,0.00040589,2]
[391709465,1760739046201,-3594.81602736,0.00040591,15]
[391709466,1760739046211,-642.75296998,0.00040643,2]
[391709467,1760739046220,-548.0,0.00040643,2]
[391709468,1760739046229,-548.0,0.00040698,2]
[391709469,1760739046238,-548.0,0.00040753,2]
[391709470,1760739046248,-15225.115906,0.000408,3]
[391709471,1760739046257,-9124.94101428,0.000408,3]
[391709472,1760739046266,-548.0,0.00040808,2]
[391709473,1760739046276,-500.0,0.0004082,2]
[391709474,1760739046286,-500.0,0.0004082,2]
[391709475,1760739046295,-500.0,0.0004082,17]
[391709476,1760739046305,-9124.94101428,0.0004082,3]
[391709477,1760739046314,-265.39938706,0.00040821,5]
[391709478,1760739046324,-2216.14701,0.0004083,6]
[391709479,1760739046334,-441.32281452,0.00040842,7]
[391709480,1760739046345,-500.0,0.00040851,17]
[391709481,1760739046355,-30450.2318121,0.00040852,3]
[391709482,1760739046365,-27374.8230428,0.00040852,3]
[391709483,1760739046510,-500.0,0.00040861,2]
[391709484,1760739046520,-15225.115906,0.00040862,3]
[391709485,1760739046535,-18249.8820286,0.00040862,3]
[391709486,1760739046545,-548.0,0.00040863,2]
[391709487,1760739046554,-1376.0,0.0004087,30]
[391709488,1760739046564,-45675.3477181,0.00040872,3]
[391709489,1760739046573,-63874.5871,0.00040872,3]
[391709490,1760739046583,-500.0,0.00040881,2]
[391709491,1760739046593,-1487.31,0.00040881,120]
[391709492,1760739046603,-500.0,0.00040881,17]
[391709493,1760739046612,-8454.20132283,0.00040882,60]
[391709494,1760739046621,-137569.0173101,0.00040882,2]
[391709495,1760739046631,-3018.0290178,0.00040882,2]
[391709496,1760739046640,-14547.1144537,0.00040882,2]
[391709497,1760739046649,-137719.1349631,0.00040882,2]
[391709498,1760739046659,-6760.8767858,0.00040882,2]
[391709500,1760739046668,-2118.6156814,0.00040882,2]
[391709502,1760739046678,-150.0,0.00040882,7]
[391709503,1760739046687,-150.0,0.00040882,7]
[391709504,1760739046697,-150.0,0.00040882,7]
[391709505,1760739046706,-167.42568727,0.00040882,7]
[391709506,1760739046715,-150.0,0.00040882,7]
[391709507,1760739046725,-150.0,0.00040882,7]
[391709508,1760739046735,-150.0,0.00040882,7]
[391709509,1760739046744,-150.0,0.00040882,7]
[391709510,1760739046754,-150.0,0.00040882,7]
[391709511,1760739046763,-150.0,0.00040882,7]
[391709512,1760739046772,-321.39517214,0.00040882,7]
[391709513,1760739046781,-150.0,0.00040882,7]
[391709514,1760739046790,-150.0,0.00040882,7]
[391709515,1760739046800,-150.0,0.00040882,7]
[391709516,1760739046809,-252.2175388,0.00040882,7]
[391709517,1760739046819,-300.0,0.00040883,103]
[391709518,1760739046828,-548.0,0.00040917,2]
[391709519,1760739046838,-500.0,0.00040924,17]
[391709520,1760739046848,-500.0,0.00040924,17]
[391709521,1760739046857,-42394.7200122,0.00040925,6]
[391709522,1760739046867,-167.42568727,0.00040928,7]
[391709523,1760739046876,-321.39517214,0.00040928,7]
[391709524,1760739046885,-500.0,0.00040934,2]
[391709525,1760739046895,-500.0,0.00040934,17]
[391709526,1760739046904,-150.0,0.00040935,7]
[391709527,1760739046913,-500.0,0.0004094,2]
[391709528,1760739046922,-200.0,0.0004094,120]
[391709529,1760739046932,-500.0,0.0004094,17]
[391709530,1760739046946,-151.0,0.00040941,14]
[391709531,1760739046955,-156.587,0.00040941,14]
[391709532,1760739046965,-162.380719,0.00040941,14]
[391709533,1760739046974,-168.3888056,0.00040941,14]
[391709534,1760739046983,-322.6107,0.00040941,14]
[391709535,1760739046994,-174.61919141,0.00040941,14]
[391709536,1760739047003,-334.5472959,0.00040941,14]
[391709537,1760739047014,-181.08010149,0.00040941,14]
[391709538,1760739047024,-346.92554585,0.00040941,14]
[391709539,1760739047033,-187.78006525,0.00040941,14]
[391709540,1760739047043,-359.76179104,0.00040941,14]
[391709541,1760739047052,-373.07297731,0.00040941,14]
[391709542,1760739047061,-194.72792766,0.00040941,14]
[391709543,1760739047070,-151.0,0.00040941,14]
[391709544,1760739047079,-386.87667747,0.00040941,14]
[391709545,1760739047089,-161.87821488,0.00040941,14]
[391709546,1760739047098,-201.93286099,0.00040941,14]
[391709547,1760739047108,-151.0,0.00040941,14]
[391709548,1760739047117,-250.0,0.00040941,14]
[391709549,1760739047127,-401.19111454,0.00040941,14]
[391709550,1760739047136,-209.40437684,0.00040941,14]
[391709551,1760739047146,-298.0,0.00040941,14]
[391709552,1760739047155,-9552.16786547,0.00040941,14]
[391709553,1760739047165,-250.0,0.00040941,14]
[391709554,1760739047183,-416.03518578,0.00040941,14]
[391709555,1760739047204,-217.15233878,0.00040941,14]
[391709556,1760739047213,-721.12765535,0.00040941,14]
[391709557,1760739047223,-9905.5980765,0.00040941,14]
[391709558,1760739047232,-250.0,0.00040941,14]
[391709559,1760739047242,-431.42848765,0.00040941,14]
[391709560,1760739047251,-1000.0,0.00040941,14]
[391709561,1760739047260,-747.8093786,0.00040941,14]
[391709562,1760739047269,-10272.10520533,0.00040941,14]
[391709563,1760739047278,-250.0,0.00040941,14]
[391709564,1760739047288,-447.3913417,0.00040941,14]
[391709565,1760739047297,-1000.0,0.00040941,14]
[391709566,1760739047307,-775.47832561,0.00040941,14]
[391709567,1760739047317,-10652.17309792,0.00040941,14]
[391709568,1760739047326,-250.0,0.00040941,14]
[391709569,1760739047336,-463.94482134,0.00040941,14]
[391709570,1760739047346,-1000.0,0.00040941,14]
[391709571,1760739047355,-804.17102365,0.00040941,14]
[391709572,1760739047365,-11046.30350255,0.00040941,14]
[391709573,1760739047374,-250.0,0.00040941,14]
[391709574,1760739047384,-481.11077973,0.00040941,14]
[391709575,1760739047393,-1000.0,0.00040941,14]
[391709576,1760739047403,-833.92535153,0.00040941,14]
[391709577,1760739047414,-250.0,0.00040941,14]
[391709578,1760739047423,-151.0,0.00040941,14]
[391709579,1760739047432,-1000.0,0.00040941,14]
[391709580,1760739047442,-864.78058953,0.00040941,14]
[391709581,1760739047451,-498.91187858,0.00040941,14]
[391709582,1760739047460,-250.0,0.00040941,14]
[391709583,1760739047470,-151.0,0.00040941,14]
[391709584,1760739047479,-1000.0,0.00040941,14]
[391709585,1760739047488,-896.77747135,0.00040941,14]
[391709586,1760739047498,-418.7347226,0.00040941,14]
[391709587,1760739047508,-250.0,0.00040941,14]
[391709588,1760739047517,-1000.0,0.00040941,14]
[391709589,1760739047527,-1039.91701142,0.00040941,14]
[391709590,1760739047537,-151.0,0.00040941,14]
[391709591,1760739047547,-11455.01673214,0.00040941,14]
[391709592,1760739047557,-250.0,0.00040941,14]
[391709593,1760739047567,-1000.0,0.00040941,14]
[391709594,1760739047576,-184.8544265,0.00040941,14]
[391709595,1760739047586,-11878.85235123,0.00040941,14]
[391709596,1760739047595,-250.0,0.00040941,14]
[391709597,1760739047605,-1000.0,0.00040941,14]
[391709598,1760739047615,-1000.0,0.00040941,14]
[391709599,1760739047624,-12318.36988823,0.00040941,14]
[391709600,1760739047634,-1000.0,0.00040941,14]
[391709601,1760739047644,-12774.14957409,0.00040941,14]
[391709602,1760739047653,-13246.79310833,0.00040941,14]
[391709603,1760739047663,-151.0,0.00040941,14]
[391709604,1760739047673,-13736.92445334,0.00040941,14]
[391709605,1760739047682,-151.0,0.00040941,14]
[391709606,1760739047692,-1000.0,0.00040941,14]
[391709607,1760739047702,-1000.0,0.00040941,14]
[391709608,1760739047712,-1000.0,0.00040941,14]
[391709609,1760739047721,-1000.0,0.00040941,14]
[391709610,1760739047731,-1000.0,0.00040941,14]
[391709611,1760739047741,-151.0,0.00040941,14]
[391709612,1760739047751,-277.35679052,0.00040941,14]
[391709613,1760739047760,-1000.0,0.00040941,14]
[391709614,1760739047769,-3000.0,0.00040941,14]
[391709615,1760739047779,-151.0,0.00040941,14]
[391709616,1760739047788,-1000.0,0.00040941,14]
[391709617,1760739047798,-287.61899177,0.00040941,14]
[391709618,1760739047807,-3000.0,0.00040941,14]
[391709619,1760739047817,-151.0,0.00040941,14]
[391709620,1760739047826,-1000.0,0.00040941,14]
[391709621,1760739047836,-250.0,0.00040941,14]
[391709622,1760739047846,-3000.0,0.00040941,14]
[391709623,1760739047856,-151.0,0.00040941,14]
[391709624,1760739047865,-151.0,0.00040941,14]
[391709625,1760739047874,-1000.0,0.00040941,14]
[391709626,1760739047884,-298.26089446,0.00040941,14]
[391709627,1760739047894,-250.0,0.00040941,14]
[391709628,1760739047903,-151.0,0.00040941,14]
[391709629,1760739047913,-151.0,0.00040941,14]
[391709630,1760739047922,-3000.0,0.00040941,14]
[391709631,1760739047932,-250.0,0.00040941,14]
[391709632,1760739047943,-309.29654756,0.00040941,14]
[391709633,1760739047953,-151.0,0.00040941,14]
[391709634,1760739047964,-1000.0,0.00040941,14]
[391709635,1760739047974,-151.0,0.00040941,14]
[391709636,1760739047983,-3000.0,0.00040941,14]
[391709637,1760739047992,-250.0,0.00040941,14]
[391709638,1760739048002,-320.74051982,0.00040941,14]
[391709639,1760739048012,-1000.0,0.00040941,14]
[391709640,1760739048021,-151.0,0.00040941,14]
[391709641,1760739048031,-151.0,0.00040941,14]
[391709642,1760739048041,-1000.0,0.00040941,14]
[391709643,1760739048050,-3000.0,0.00040941,14]
[391709644,1760739048059,-250.0,0.00040941,14]
[391709645,1760739048069,-332.60791905,0.00040941,14]
[391709646,1760739048078,-295.37683297,0.00040941,14]
[391709647,1760739048088,-1000.0,0.00040941,14]
[391709648,1760739048097,-3000.0,0.00040941,14]
[391709649,1760739048106,-250.0,0.00040941,14]
[391709650,1760739048115,-344.91441206,0.00040941,14]
[391709651,1760739048125,-151.0,0.00040941,14]
[391709652,1760739048134,-1000.0,0.00040941,14]
[391709653,1760739048143,-3000.0,0.00040941,14]
[391709654,1760739048152,-357.6762453,0.00040941,14]
[391709655,1760739048162,-250.0,0.00040941,14]